[Event "Catalan Youth Championship 2024"]
[Site "Cambrils"]
[Date "2024.03.24"]
[Round "3.1"]
[White "Garcia Corpas, Nicolas"]
[Black "Ortega Campallo, David"]
[Result "0-1"]
[ECO "B22"]
[WhiteElo "1679"]
[BlackElo "1522"]
[Annotator "NA RC"]
[PlyCount "108"]
[EventDate "2024.03.13"]
[EventType "swiss"]
[EventCountry "ESP"]
[SourceTitle "playchess.com"]
[Source "ChessBase"]
[SourceQuality "1"]
[TimeControl "5400+30"]

1. e4 {[%emt 0:00:04]} c5 {[%emt 0:00:08]} 2. c3 {[%emt 0:00:06]} d5 {[%emt 0:00:16]} 3. e5 {[%emt 0:00:06]} Nc6 {[%emt 0:00:44]} 4. d4 {[%emt 0:00:06]} c4 {[%emt 0:01:16]} 5. Nf3 {[%emt 0:01:51]} Bf5 {[%emt 0:02:07]} 6. Be2 {[%emt 0:03:16]} f6 {[%emt 0:01:50]} 7. O-O {[%emt 0:01:27]} fxe5 {[%emt 0:02:21]} 8. dxe5 {[%emt 0:04:15]} e6 {[%emt 0:02:46]} 9. Be3 {[%emt 0:22:17]} Nge7 {[%emt 0:05:20]} 10. Bc5 {[%emt 0:06:59]} Ng6 {[%emt 0:09:50]} 11. Bxf8 {[%emt 0:02:37]} Rxf8 {[%emt 0:01:33]} 12. Re1 {[%emt 0:06:00]} Qc7 {[%emt 0:05:08]} 13. Bf1 {[%emt 0:05:31]} Ngxe5 {[%emt 0:02:45]} 14. Nxe5 {[%emt 0:00:19]} Nxe5 {[%emt 0:00:19]} 15. Qd4 {[%emt 0:06:26]} Ng4 {[%emt 0:02:02]} 16. g3 {[%emt 0:04:06]} Qd7 {[%emt 1:00:05]} 17. h3 {[%emt 0:06:01]} Nxf2 {[%emt 0:00:00]} 18. Qxf2 {[%emt 0:02:50]} Bxb1 {[%emt 0:00:00]} 19. Qe3 {[%emt 0:04:20]} Be4 {[%emt 0:00:00]} 20. Bxc4 {[%emt 0:00:42]} Rf3 {[%emt 0:00:00]} 21. Qg5 {[%emt 0:02:39]} Qe7 {[%emt 0:00:00]} 22. Qh5+ {[%emt 0:05:47]} g6 {[%emt 0:00:00]} 23. Bb5+ {[%emt 0:05:43]} Kd8 {[%emt 0:00:00]} 24. Qxf3 {[%emt 0:05:03]} Bxf3 {[%emt 0:00:00]} 25. b4 {[%emt 0:00:46]} Qd6 {[%emt 0:00:00]} 26. Kf2 {[%emt 0:00:51]} Be4 {[%emt 0:00:00]} 27. Ba4 {[%emt 0:01:18]} Ke7 {[%emt 0:00:00]} 28. Bb3 {[%emt 0:01:23]} Rf8+ {[%emt 0:00:00]} 29. Ke2 {[%emt 0:00:13]} Qxg3 {[%emt 0:00:00]} 30. Kd1 {[%emt 0:00:42]} Bf3+ {[%emt 0:00:00]} 31. Kc2 {[%emt 0:00:42]} Be4+ {[%emt 0:00:00]} 32. Kb2 {[%emt 0:00:09]} a5 {[%emt 0:00:00]} 33. b5 {[%emt 0:00:47]} Qf2+ {[%emt 0:00:00]} 34. Ka3 {[%emt 0:00:10]} Qc5+ {[%emt 0:00:00]} 35. Ka4 {[%emt 0:00:08]} Rf4 {[%emt 0:00:00]} 36. Kxa5 {[%emt 0:00:28]} Qa7+ {[%emt 0:00:00]} 37. Kb4 {[%emt 0:00:09]} Bd3+ {[%emt 0:00:00]} 38. c4 {[%emt 0:00:24]} Bxc4 {[%emt 0:00:00]} 39. Kc3 {[%emt 0:00:32]} Qa5+ {[%emt 0:00:00]} 40. Kb2 {[%emt 0:00:14]} Rf2+ {[%emt 0:00:00]} 41. Bc2 {[%emt 0:00:19]} Bd3 {[%emt 0:00:00]} 42. Rac1 {[%emt 0:00:33]} Rxc2+ {[%emt 0:00:00]} 43. Rxc2 {[%emt 0:00:07]} Bxc2 {[%emt 0:00:00]} 44. Rxe6+ {[%emt 0:00:26]} Kxe6 {[%emt 0:00:00]} 45. Kxc2 {[%emt 0:00:07]} Qxa2+ {[%emt 0:00:00]} 46. Kd3 {[%emt 0:00:19]} Qc4+ {[%emt 0:00:00]} 47. Ke3 {[%emt 0:00:06]} Qe4+ {[%emt 0:00:00]} 48. Kd2 {[%emt 0:00:05]} Qf3 {[%emt 0:00:00]} 49. b6 {[%emt 0:00:09]} d4 {[%emt 0:00:00]} 50. h4 {[%emt 0:00:08]} Qe3+ {[%emt 0:00:00]} 51. Kd1 {[%emt 0:00:13]} Qf2 {[%emt 0:00:00]} 52. h5 {[%emt 0:00:06]} d3 {[%emt 0:00:00]} 53. hxg6 {[%emt 0:00:07]} hxg6 {[%emt 0:00:00]} 54. Kc1 {[%emt 0:00:50]} Qc2# {[%emt 0:19:00]} 0-1

[Event "Catalan Youth Championship 2024"]
[Site "Cambrils"]
[Date "2024.03.24"]
[Round "3.2"]
[White "Diana Arpa, Carlos"]
[Black "Caballero Mogilnikov, Liam"]
[Result "0-1"]
[ECO "B20"]
[WhiteElo "1522"]
[BlackElo "1659"]
[Annotator "NA RC"]
[PlyCount "66"]
[EventDate "2024.03.13"]
[EventType "swiss"]
[EventCountry "ESP"]
[SourceTitle "playchess.com"]
[Source "ChessBase"]
[SourceQuality "1"]
[TimeControl "5400+30"]

1. e4 {[%emt 0:00:04]} c5 {[%emt 0:00:18]} 2. Nc3 {[%emt 0:00:22]} d6 {[%emt 0:00:33]} 3. g3 {[%emt 0:00:55]} Nc6 {[%emt 0:01:13]} 4. Bg2 {[%emt 0:00:33]} e5 {[%emt 0:00:47]} 5. d3 {[%emt 0:01:03]} Nf6 {[%emt 0:01:44]} 6. f4 {[%emt 0:01:51]} g6 {[%emt 0:06:04]} 7. Nf3 {[%emt 0:01:56]} Bg7 {[%emt 0:02:47]} 8. O-O {[%emt 0:02:41]} O-O {[%emt 0:01:59]} 9. h3 {[%emt 0:02:38]} Nh5 {[%emt 0:04:22]} 10. Qe1 {[%emt 1:23:27]} Nb4 {[%emt 0:02:16]} 11. Qf2 {[%emt 0:00:00]} exf4 {[%emt 0:04:11]} 12. Bxf4 {[%emt 0:00:00]} Nxf4 {[%emt 0:01:57]} 13. gxf4 {[%emt 0:00:00]} Bd7 {[%emt 0:03:35]} 14. a3 {[%emt 0:00:00]} Nc6 {[%emt 0:01:15]} 15. Rab1 {[%emt 0:00:00]} a6 {[%emt 0:04:18]} 16. Nd5 {[%emt 0:00:00]} Be6 {[%emt 0:02:22]} 17. Ne3 {[%emt 0:03:30]} Bd7 {[%emt 0:15:22]} 18. Nd5 {[%emt 0:00:00]} Ne7 {[%emt 0:01:35]} 19. Qh4 {[%emt 0:00:00]} Nxd5 {[%emt 0:02:04]} 20. Qxd8 {[%emt 0:00:00]} Rfxd8 {[%emt 0:00:55]} 21. exd5 {[%emt 0:00:00]} Re8 {[%emt 0:01:20]} 22. b3 {[%emt 0:00:00]} Re2 {[%emt 0:02:22]} 23. Rf2 {[%emt 0:00:00]} Rae8 {[%emt 0:02:18]} 24. Rbf1 {[%emt 0:00:00]} Bh6 {[%emt 0:02:41]} 25. Ng5 {[%emt 0:00:00]} Bg7 {[%emt 0:00:45]} 26. Rxe2 {[%emt 0:01:21]} Rxe2 {[%emt 0:00:22]} 27. Rf2 {[%emt 0:00:53]} Bd4 {[%emt 0:00:18]} 28. Kf1 {[%emt 0:02:18]} Rxf2+ {[%emt 0:00:18]} 29. Kg1 {[%emt 0:00:26]} Rxf4+ {[%emt 0:00:34]} 30. Kh2 {[%emt 0:01:00]} Rf2 {[%emt 0:00:39]} 31. Nf3 {[%emt 0:00:27]} Rxc2 {[%emt 0:00:27]} 32. h4 {[%emt 0:00:34]} Bg4 {[%emt 0:00:26]} 33. a4 {[%emt 0:00:30]} Bxf3 {[%emt 0:00:13]} 0-1

[Event "Catalan Youth Championship 2024"]
[Site "Cambrils"]
[Date "2024.03.24"]
[Round "3.3"]
[White "Kukushkin, Oleg"]
[Black "Saltos Macias, Gael"]
[Result "1-0"]
[ECO "A35"]
[WhiteElo "1509"]
[BlackElo "1630"]
[Annotator "NA RC"]
[PlyCount "151"]
[EventDate "2024.03.13"]
[EventType "swiss"]
[EventCountry "ESP"]
[SourceTitle "playchess.com"]
[Source "ChessBase"]
[SourceQuality "1"]
[TimeControl "5400+30"]

1. c4 {[%emt 0:00:03]} c5 {[%emt 0:00:19]} 2. Nc3 {[%emt 0:00:15]} Nc6 {[%emt 0:00:39]} 3. e3 {[%emt 0:01:29]} Nf6 {[%emt 0:01:17]} 4. b3 {[%emt 0:01:53]} g6 {[%emt 0:00:36]} 5. h4 {[%emt 1:29:20]} Bg7 {[%emt 0:04:16]} 6. Bb2 {[%emt 0:00:00]} b6 {[%emt 0:03:10]} 7. Nf3 {[%emt 0:00:00]} Ne4 {[%emt 0:03:56]} 8. Qc2 {[%emt 0:00:00]} Nxc3 {[%emt 0:03:14]} 9. Bxc3 {[%emt 0:00:00]} e5 {[%emt 0:01:31]} 10. a3 {[%emt 0:00:00]} a5 {[%emt 0:02:15]} 11. g4 {[%emt 0:00:00]} Bb7 {[%emt 0:07:01]} 12. Be2 {[%emt 0:00:00]} d6 {[%emt 0:10:46]} 13. Rh3 {[%emt 0:00:00]} Qd7 {[%emt 0:04:00]} 14. Rg3 {[%emt 0:00:00]} Ne7 {[%emt 0:06:03]} 15. e4 {[%emt 0:00:00]} Bc6 {[%emt 0:03:09]} 16. g5 {[%emt 0:00:00]} Qb7 {[%emt 0:00:34]} 17. Bd3 {[%emt 0:00:00]} b5 {[%emt 0:02:13]} 18. cxb5 {[%emt 0:00:00]} Bxb5 {[%emt 0:00:21]} 19. Rb1 {[%emt 0:00:00]} Qa6 {[%emt 0:00:56]} 20. Bxb5+ {[%emt 0:00:00]} Qxb5 {[%emt 0:00:15]} 21. a4 {[%emt 0:00:00]} Qc6 {[%emt 0:00:19]} 22. d3 {[%emt 0:00:00]} h6 {[%emt 0:05:11]} 23. Qd2 {[%emt 0:00:00]} h5 {[%emt 0:02:23]} 24. Bxa5 {[%emt 0:00:00]} d5 {[%emt 0:02:45]} 25. Rd1 {[%emt 0:00:00]} d4 {[%emt 0:03:23]} 26. Ra1 {[%emt 0:00:00]} Qa6 {[%emt 0:01:04]} 27. Bc7 {[%emt 0:00:00]} Nc6 {[%emt 0:00:13]} 28. Qc2 {[%emt 0:00:00]} Kd7 {[%emt 0:00:50]} 29. Qxc5 {[%emt 0:00:00]} Kxc7 {[%emt 0:00:16]} 30. Rc1 {[%emt 0:00:00]} Rhe8 {[%emt 0:01:50]} 31. b4 {[%emt 0:00:00]} Qxa4 {[%emt 0:00:52]} 32. b5 {[%emt 0:00:00]} Qa5+ {[%emt 0:00:06]} 33. Kf1 {[%emt 0:00:00]} Re6 {[%emt 0:00:24]} 34. bxc6 {[%emt 0:00:00]} Qxc5 {[%emt 0:00:44]} 35. Rxc5 {[%emt 0:00:00]} Rxc6 {[%emt 0:00:08]} 36. Rxc6+ {[%emt 0:00:00]} Kxc6 {[%emt 0:00:08]} 37. Nd2 {[%emt 0:00:00]} Ra2 {[%emt 0:01:02]} 38. Nc4 {[%emt 0:00:00]} Kd7 {[%emt 0:01:11]} 39. Rf3 {[%emt 0:00:00]} Ke6 {[%emt 0:00:12]} 40. Nb6 {[%emt 0:00:00]} Ra1+ {[%emt 0:00:15]} 41. Kg2 {[%emt 0:00:00]} Rb1 {[%emt 0:01:15]} 42. Nd5 {[%emt 0:00:00]} Rb8 {[%emt 0:00:13]} 43. Rh3 {[%emt 0:00:00]} f6 {[%emt 0:00:33]} 44. gxf6 {[%emt 0:00:00]} Bxf6 {[%emt 0:00:16]} 45. Rh1 {[%emt 0:00:00]} Rf8 {[%emt 0:00:51]} 46. Kg3 {[%emt 0:00:00]} Bg7 {[%emt 0:00:57]} 47. Rc1 {[%emt 0:00:00]} Kd6 {[%emt 0:00:29]} 48. Rb1 {[%emt 0:00:00]} Rc8 {[%emt 0:00:16]} 49. Rb6+ {[%emt 0:00:00]} Rc6 {[%emt 0:00:53]} 50. Rxc6+ {[%emt 0:00:00]} Kxc6 {[%emt 0:00:14]} 51. Ne7+ {[%emt 0:00:00]} Kc5 {[%emt 0:00:36]} 52. Nxg6 {[%emt 0:00:00]} Kb4 {[%emt 0:00:11]} 53. Kf3 {[%emt 0:00:39]} Kc3 {[%emt 0:00:32]} 54. Ke2 {[%emt 0:00:14]} Bf6 {[%emt 0:00:10]} 55. f4 {[%emt 0:00:56]} exf4 {[%emt 0:00:13]} 56. Nxf4 {[%emt 0:00:13]} Bxh4 {[%emt 0:00:08]} 57. Nxh5 {[%emt 0:00:12]} Kc2 {[%emt 0:00:39]} 58. Nf4 {[%emt 0:00:52]} Bf6 {[%emt 0:00:14]} 59. Kf3 {[%emt 0:00:41]} Be5 {[%emt 0:00:21]} 60. Ng6 {[%emt 0:01:08]} Bc7 {[%emt 0:00:24]} 61. Ke2 {[%emt 0:00:30]} Kc3 {[%emt 0:00:25]} 62. e5 {[%emt 0:00:32]} Bxe5 {[%emt 0:00:21]} 63. Nxe5 {[%emt 0:00:14]} Kb4 {[%emt 0:00:07]} 64. Nf3 {[%emt 0:00:16]} Kc5 {[%emt 0:00:09]} 65. Kd2 {[%emt 0:00:38]} Kd5 {[%emt 0:00:12]} 66. Kc2 {[%emt 0:00:25]} Kc5 {[%emt 0:00:50]} 67. Nxd4 {[%emt 0:00:22]} Kxd4 {[%emt 0:00:12]} 68. Kd2 {[%emt 0:00:12]} Ke5 {[%emt 0:00:10]} 69. Kc3 {[%emt 0:00:22]} Kd5 {[%emt 0:00:29]} 70. d4 {[%emt 0:00:35]} Kc6 {[%emt 0:00:19]} 71. Kc4 {[%emt 0:00:17]} Kd6 {[%emt 0:00:11]} 72. d5 {[%emt 0:00:30]} Kc7 {[%emt 0:00:10]} 73. Kc5 {[%emt 0:00:12]} Kd7 {[%emt 0:00:08]} 74. d6 {[%emt 0:00:17]} Kc8 {[%emt 0:00:09]} 75. Kc6 {[%emt 0:00:15]} Kd8 {[%emt 0:00:35]} 76. d7 {[%emt 0:00:13]} 1-0

[Event "Catalan Youth Championship 2024"]
[Site "Cambrils"]
[Date "2024.03.24"]
[Round "3.4"]
[White "Garcia Huerta, Joaquin Marc"]
[Black "Diego Morillas, Gerard"]
[Result "1-0"]
[ECO "C02"]
[WhiteElo "1617"]
[BlackElo "1482"]
[Annotator "NA RC"]
[PlyCount "49"]
[EventDate "2024.03.13"]
[EventType "swiss"]
[EventCountry "ESP"]
[SourceTitle "playchess.com"]
[Source "ChessBase"]
[SourceQuality "1"]
[TimeControl "5400+30"]

1. e4 {[%emt 0:00:01]} e6 {[%emt 0:02:14]} 2. d4 {[%emt 0:00:12]} d5 {[%emt 0:00:25]} 3. e5 {[%emt 0:00:18]} c5 {[%emt 0:00:40]} 4. c3 {[%emt 0:00:10]} Ne7 {[%emt 0:03:55]} 5. Nf3 {[%emt 0:01:23]} Nec6 {[%emt 0:00:42]} 6. Bd3 {[%emt 0:00:47]} b6 {[%emt 0:01:02]} 7. O-O {[%emt 0:01:44]} Ba6 {[%emt 0:00:48]} 8. Bxa6 {[%emt 0:00:21]} Nxa6 {[%emt 0:00:10]} 9. Qa4 {[%emt 0:00:17]} Nab8 {[%emt 0:00:12]} 10. Be3 {[%emt 0:01:13]} Qd7 {[%emt 0:01:09]} 11. Qc2 {[%emt 0:01:16]} h6 {[%emt 0:06:12]} 12. Nbd2 {[%emt 0:03:28]} Be7 {[%emt 0:04:30]} 13. Rac1 {[%emt 0:01:35]} c4 {[%emt 0:07:31]} 14. Rfd1 {[%emt 0:03:11]} b5 {[%emt 0:11:41]} 15. b4 {[%emt 0:04:09]} Na6 {[%emt 0:08:36]} 16. a4 {[%emt 0:02:26]} Nc7 {[%emt 0:02:42]} 17. axb5 {[%emt 0:01:13]} Nxb5 {[%emt 0:00:36]} 18. Nf1 {[%emt 0:00:27]} a6 {[%emt 0:08:27]} 19. Ng3 {[%emt 0:00:56]} Bf8 {[%emt 0:03:21]} 20. Nh5 {[%emt 0:03:43]} g6 {[%emt 0:03:38]} 21. Nf6+ {[%emt 0:00:39]} Ke7 {[%emt 0:01:45]} 22. Nxd7 {[%emt 0:00:50]} Kxd7 {[%emt 0:00:13]} 23. Nd2 {[%emt 0:00:29]} Bg7 {[%emt 0:05:20]} 24. Nf1 {[%emt 0:00:38]} Ke7 {[%emt 0:01:57]} 25. Ng3 {[%emt 0:00:24]} 1-0

[Event "Catalan Youth Championship 2024"]
[Site "Cambrils"]
[Date "2024.03.24"]
[Round "3.5"]
[White "Tallada Serret, Gerard"]
[Black "Calero Ganso, Ruben"]
[Result "1-0"]
[ECO "C67"]
[WhiteElo "2085"]
[BlackElo "1620"]
[Annotator "NA RC"]
[PlyCount "59"]
[EventDate "2024.03.13"]
[EventType "swiss"]
[EventCountry "ESP"]
[SourceTitle "playchess.com"]
[Source "ChessBase"]
[SourceQuality "1"]
[TimeControl "5400+30"]

1. e4 {[%emt 0:00:01]} e5 {[%emt 0:00:11]} 2. Nf3 {[%emt 0:00:04]} Nc6 {[%emt 0:00:17]} 3. Bb5 {[%emt 0:00:08]} Nf6 {[%emt 0:01:38]} 4. O-O {[%emt 0:00:13]} Nxe4 {[%emt 0:01:28]} 5. Bxc6 {[%emt 0:00:16]} bxc6 {[%emt 0:00:21]} 6. Nxe5 {[%emt 0:00:23]} Be7 {[%emt 0:00:51]} 7. Re1 {[%emt 0:04:40]} Nf6 {[%emt 0:02:57]} 8. Qe2 {[%emt 0:01:20]} O-O {[%emt 0:01:27]} 9. d4 {[%emt 1:27:55]} (9. Nxc6 $14 dxc6 10. Qxe7) 9... c5 {[%emt 0:05:06]} 10. dxc5 {[%emt 0:00:00]} Bxc5 {[%emt 0:02:29]} 11. Qf3 {[%emt 0:00:00]} d5 {[%emt 0:02:04]} 12. Bg5 {[%emt 0:00:00]} Re8 {[%emt 0:00:56]} 13. Nc3 {[%emt 0:00:00]} Be6 {[%emt 0:03:07]} 14. Nd3 {[%emt 0:00:00]} (14. Rad1 $14 {deserves consideration.}) 14... Be7 $1 {[%emt 0:03:09]} 15. Nf4 {[%emt 0:03:00]} Qd7 $11 {[%emt 1:11:59]} 16. Bxf6 {[%emt 0:00:00]} Bxf6 {[%emt 0:00:00]} 17. Nfxd5 {[%emt 0:00:00]} Bxd5 {[%emt 0:00:00]} 18. Nxd5 {[%emt 0:00:00]} Bxb2 {[%emt 0:00:00]} 19. Rab1 {[%emt 0:00:00]} Rxe1+ {[%emt 0:00:00]} 20. Rxe1 {[%emt 0:00:00]} Re8 {[%emt 0:00:00]} 21. Rd1 {[%emt 0:00:00]} Qe6 {[%emt 0:00:00]} 22. h3 {[%emt 0:00:00]} Be5 {[%emt 0:00:00]} 23. c4 {[%emt 0:00:00]} Bd6 {[%emt 0:00:00]} 24. Ne3 {[%emt 0:04:30]} h6 {[%emt 0:00:00]} 25. Qd5 {[%emt 0:00:00]} Bf4 {[%emt 0:00:00]} 26. Qxe6 {[%emt 0:00:00]} Rxe6 {[%emt 0:00:00]} 27. Nd5 {[%emt 0:00:00]} Rd6 {[%emt 0:00:00]} 28. c5 {[%emt 0:00:00]} Rxd5 {[%emt 0:00:00]} 29. Rxd5 {[%emt 0:00:00]} Kf8 {[%emt 0:00:00]} 30. g3 {[%emt 0:00:00]} 1-0

[Event "Catalan Youth Championship 2024"]
[Site "Cambrils"]
[Date "2024.03.24"]
[Round "3.6"]
[White "Martinez Ayala, Jan"]
[Black "Bru Montoya, Pau"]
[Result "0-1"]
[ECO "C44"]
[WhiteElo "1647"]
[BlackElo "1850"]
[Annotator "NA RC"]
[PlyCount "76"]
[EventDate "2024.03.13"]
[EventType "swiss"]
[EventCountry "ESP"]
[SourceTitle "playchess.com"]
[Source "ChessBase"]
[SourceQuality "1"]
[TimeControl "5400+30"]

1. e4 {[%emt 1:31:00]} e5 {[%emt 1:31:00]} 2. Nf3 {[%emt 0:00:30]} Nc6 {[%emt 0:00:30]} 3. c3 {[%emt 0:00:30]} Nf6 {[%emt 0:00:30]} 4. d4 {[%emt 0:00:30]} Nxe4 {[%emt 0:00:30]} 5. d5 {[%emt 0:00:30]} Ne7 {[%emt 0:00:30]} 6. Nxe5 {[%emt 0:00:30]} Ng6 {[%emt 0:00:30]} 7. Bd3 {[%emt 0:00:30]} Nc5 {[%emt 0:00:30] C44: Schottische Partie.} 8. Nxg6 {[%emt 0:00:30]} hxg6 {[%emt 0:00:30]} 9. O-O {[%emt 0:00:30]} Nxd3 {[%emt 0:00:30]} 10. Qxd3 {[%emt 0:00:30]} Be7 {[%emt 0:00:30]} 11. Nd2 {[%emt 0:00:30]} O-O {[%emt 0:00:30]} 12. Nf3 {[%emt 0:00:30]} d6 {[%emt 0:00:30]} 13. Nd4 {[%emt 0:00:30]} Bd7 {[%emt 0:00:30]} 14. f4 {[%emt 0:00:30]} Bf6 {[%emt 0:00:30]} 15. Be3 {[%emt 0:00:30]} Re8 {[%emt 0:00:30]} 16. Bf2 {[%emt 0:00:30]} c6 {[%emt 0:00:30]} 17. dxc6 {[%emt 0:00:30]} bxc6 {[%emt 0:00:30]} 18. Bg3 {[%emt 0:00:30]} Rb8 {[%emt 0:00:30]} 19. b3 {[%emt 0:00:30]} c5 {[%emt 0:00:30]} 20. Nf3 {[%emt 0:00:30]} Bb5 {[%emt 0:00:30]} 21. c4 {[%emt 0:00:30]} Bxa1 $19 {[%emt 0:00:30]} 22. cxb5 {[%emt 0:00:30]} Bf6 {[%emt 0:00:30]} 23. f5 {[%emt 0:00:30]} Qb6 {[%emt 0:00:30]} 24. Qxd6 {[%emt 0:00:30]} Qxd6 {[%emt 0:00:30]} 25. Bxd6 {[%emt 0:00:30]} Rxb5 {[%emt 0:00:30]} 26. fxg6 {[%emt 0:00:30]} fxg6 {[%emt 0:00:30]} 27. Rc1 {[%emt 0:00:30]} Re2 {[%emt 0:00:30]} 28. Rxc5 {[%emt 0:00:30]} Rxc5 {[%emt 0:00:30]} 29. Bxc5 {[%emt 0:00:30]} Rxa2 {[%emt 0:00:30]} 30. b4 {[%emt 0:00:30]} Kf7 {[%emt 0:00:30]} 31. Nd4 {[%emt 0:00:30]} Bxd4+ {[%emt 0:00:30]} 32. Bxd4 {[%emt 0:00:30]} Ra4 {[%emt 0:00:30]} 33. Kf2 {[%emt 0:00:30]} a5 {[%emt 0:00:30]} 34. Ke3 {[%emt 0:00:30]} Rxb4 {[%emt 0:00:30]} 35. Kd3 {[%emt 0:00:30]} a4 {[%emt 0:00:30]} 36. h3 {[%emt 0:00:30]} a3 {[%emt 0:00:30]} 37. Bc3 {[%emt 0:00:30]} a2 {[%emt 0:00:30]} 38. Kc2 {[%emt 0:00:30]} Rc4 {[%emt 0:00:30]} 0-1

[Event "Catalan Youth Championship 2024"]
[Site "Cambrils"]
[Date "2024.03.24"]
[Round "3.7"]
[White "Perez Vidal, Ian"]
[Black "Gomez Kunz, Tarik Marti"]
[Result "1-0"]
[ECO "C41"]
[WhiteElo "1828"]
[BlackElo "1602"]
[Annotator "NA RC"]
[PlyCount "40"]
[EventDate "2024.03.13"]
[EventType "swiss"]
[EventCountry "ESP"]
[SourceTitle "playchess.com"]
[Source "ChessBase"]
[SourceQuality "1"]
[TimeControl "5400+30"]

1. e4 {[%emt 0:00:23]} e5 {[%emt 0:00:01]} 2. Nf3 {[%emt 0:00:10]} d6 {[%emt 0:00:02]} 3. d4 {[%emt 0:00:13]} exd4 {[%emt 0:00:10]} 4. Nxd4 {[%emt 0:00:30]} Nf6 {[%emt 0:00:25]} 5. Nc3 {[%emt 0:00:25]} Be7 {[%emt 0:00:38]} 6. Bc4 {[%emt 0:00:53]} O-O {[%emt 1:32:14]} 7. O-O {[%emt 0:01:14]} c6 {[%emt 0:00:00]} 8. Bg5 {[%emt 0:03:34]} h6 {[%emt 0:00:00]} 9. Be3 {[%emt 0:05:04]} Re8 {[%emt 0:00:00]} 10. f4 {[%emt 0:04:39]} Bf8 {[%emt 0:00:00]} 11. Qf3 {[%emt 0:02:07]} Nbd7 {[%emt 0:00:00]} 12. Qg3 {[%emt 0:18:43]} (12. Bd3 $11 {remains equal.}) 12... Nxe4 {[%emt 0:00:00]} 13. Nxe4 {[%emt 0:00:44]} d5 {[%emt 0:00:00] [#]} 14. Nf5 $14 {[%emt 0:01:51]} g6 {[%emt 0:00:00]} 15. Ned6 {[%emt 0:02:13]} Re6 {[%emt 0:00:00]} 16. Bd3 {[%emt 0:02:47]} Bxd6 {[%emt 0:00:00]} 17. Nxd6 {[%emt 0:00:11]} Rxd6 {[%emt 0:00:00]} 18. f5 {[%emt 0:00:05]} Nf8 {[%emt 0:00:00]} 19. Bxh6 {[%emt 0:01:03]} Kh7 {[%emt 0:06:30]} 20. Bxf8 {[%emt 0:53:41]} Qxf8 {[%emt 0:00:30]} 1-0

[Event "Catalan Youth Championship 2024"]
[Site "Cambrils"]
[Date "2024.03.24"]
[Round "3.8"]
[White "Sahakyan, Aram A"]
[Black "Hijarrubia Alvarez-Cuevas, Gonzalo"]
[Result "0-1"]
[ECO "B45"]
[WhiteElo "1639"]
[BlackElo "1827"]
[Annotator "NA RC"]
[PlyCount "70"]
[EventDate "2024.03.13"]
[EventType "swiss"]
[EventCountry "ESP"]
[SourceTitle "playchess.com"]
[Source "ChessBase"]
[SourceQuality "1"]
[TimeControl "5400+30"]

1. e4 {[%emt 0:03:04]} c5 {[%emt 0:00:06]} 2. Nf3 {[%emt 0:00:04]} e6 {[%emt 0:00:12]} 3. d4 {[%emt 0:00:13]} cxd4 {[%emt 0:00:04]} 4. Nxd4 {[%emt 0:00:03]} Nf6 {[%emt 0:00:06]} 5. Nc3 {[%emt 0:00:15]} Nc6 {[%emt 0:00:05]} 6. a3 {[%emt 0:01:27]} d5 {[%emt 0:08:01]} 7. exd5 {[%emt 0:06:48]} Nxd5 {[%emt 0:02:55]} 8. Nxd5 {[%emt 0:05:42]} exd5 {[%emt 0:06:59]} 9. Be3 {[%emt 0:03:19]} Be7 {[%emt 0:02:28]} 10. Bb5 {[%emt 0:00:54]} Bd7 {[%emt 0:01:48]} 11. Qf3 {[%emt 0:03:56]} Nxd4 {[%emt 0:02:43]} 12. Bxd7+ {[%emt 0:00:12]} Qxd7 {[%emt 0:00:21]} 13. Bxd4 {[%emt 0:00:05]} Qe6+ {[%emt 0:08:08]} 14. Kd2 {[%emt 0:07:46]} Bg5+ {[%emt 0:04:35]} 15. Kd1 {[%emt 0:06:55]} O-O {[%emt 0:01:16]} 16. h4 {[%emt 0:00:49]} Bd8 $11 {[%emt 0:06:12]} 17. Re1 {[%emt 0:01:32]} Qc6 {[%emt 0:00:37]} 18. g3 {[%emt 0:01:44]} Rc8 {[%emt 0:07:19]} 19. c3 {[%emt 0:00:45]} Bb6 {[%emt 0:02:42]} 20. Qg4 {[%emt 0:03:51]} Bxd4 {[%emt 0:08:00]} 21. Qxd4 {[%emt 0:00:06]} Rfe8 {[%emt 0:02:40]} 22. Kd2 {[%emt 0:00:52]} Re4 {[%emt 0:05:58]} 23. Qxa7 {[%emt 0:02:25]} Qb5 {[%emt 0:01:57]} 24. b4 {[%emt 0:01:50]} Qc4 {[%emt 0:00:48]} 25. Rxe4 {[%emt 0:10:44]} Qxc3+ {[%emt 0:00:12]} 26. Ke2 {[%emt 0:00:08]} dxe4 {[%emt 0:05:20]} 27. Qxb7 {[%emt 0:12:15]} Rd8 {[%emt 0:00:33]} 28. Qxe4 {[%emt 0:02:27]} Qxa1 {[%emt 0:00:14]} 29. Qc2 {[%emt 0:01:36]} Qxa3 {[%emt 0:00:50]} 30. b5 {[%emt 0:00:07]} Re8+ {[%emt 0:01:05]} 31. Kf1 {[%emt 0:00:11]} Qb4 {[%emt 0:00:33]} 32. Qc6 {[%emt 0:01:15]} Qe1+ {[%emt 0:00:07]} 33. Kg2 {[%emt 0:00:04]} Qe4+ {[%emt 0:00:06]} 34. f3 {[%emt 0:00:23]} Qxc6 {[%emt 0:00:10]} 35. bxc6 {[%emt 0:00:06]} Rc8 {[%emt 0:00:06]} 0-1

[Event "Catalan Youth Championship 2024"]
[Site "Cambrils"]
[Date "2024.03.24"]
[Round "3.9"]
[White "Uber Gracia, Hugo"]
[Black "Dea Ruiz, Jofre"]
[Result "1-0"]
[ECO "A11"]
[WhiteElo "2237"]
[BlackElo "1836"]
[Annotator "RC"]
[PlyCount "81"]
[EventDate "2024.03.13"]
[EventType "swiss"]
[EventCountry "ESP"]
[SourceTitle "playchess.com"]
[Source "ChessBase"]
[SourceQuality "1"]
[TimeControl "5400+30"]

1. c4 {[%emt 1:31:00]} c6 {[%emt 1:31:00]} 2. Nf3 {[%emt 0:00:30]} d5 {[%emt 0:00:30]} 3. e3 {[%emt 0:00:30]} Nf6 {[%emt 0:00:30]} 4. Nc3 {[%emt 0:00:30]} dxc4 {[%emt 0:00:30]} 5. Bxc4 {[%emt 0:00:30]} e6 {[%emt 0:00:30]} 6. O-O {[%emt 0:00:30]} Bd6 {[%emt 0:00:30]} 7. d4 {[%emt 0:00:30]} O-O {[%emt 0:00:30]} 8. e4 {[%emt 0:00:30]} Be7 {[%emt 0:00:30]} 9. Bf4 {[%emt 0:00:30]} Nbd7 {[%emt 0:00:30]} 10. Qc2 {[%emt 0:00:30]} Re8 {[%emt 0:00:30]} 11. Rad1 {[%emt 0:00:30]} Qb6 {[%emt 0:00:30]} 12. Rd2 {[%emt 0:00:30]} Nf8 {[%emt 0:00:30]} 13. h3 {[%emt 0:00:30]} Ng6 {[%emt 0:00:30]} 14. Be3 {[%emt 0:00:30]} Qc7 {[%emt 0:00:30]} 15. Rfd1 {[%emt 0:00:30]} b5 {[%emt 0:00:30]} 16. Bb3 {[%emt 0:00:30]} a6 {[%emt 0:00:30]} 17. a4 {[%emt 0:00:30]} Rb8 {[%emt 0:00:30]} 18. axb5 {[%emt 0:00:30]} axb5 {[%emt 0:00:30]} 19. Qd3 {[%emt 0:00:30]} Ba6 {[%emt 0:00:30]} 20. Qb1 {[%emt 0:00:30]} Red8 {[%emt 0:00:30]} 21. e5 {[%emt 0:00:30]} Nd5 {[%emt 0:00:30]} 22. Ne4 {[%emt 0:00:30]} Nxe3 {[%emt 0:00:30]} 23. fxe3 {[%emt 0:00:30]} c5 {[%emt 0:00:30]} 24. Nxc5 {[%emt 0:00:30]} Bxc5 {[%emt 0:00:30]} 25. Rc2 {[%emt 0:00:30]} Qe7 {[%emt 0:00:30]} 26. Rxc5 {[%emt 0:00:30]} Bb7 {[%emt 0:00:30]} 27. Rf1 {[%emt 0:00:30]} Nh4 {[%emt 0:00:30]} 28. Nxh4 {[%emt 0:00:30]} Qxh4 {[%emt 0:00:30]} 29. Qc2 {[%emt 0:00:30]} Be4 {[%emt 0:00:30]} 30. Qe2 {[%emt 0:00:30]} Qg3 {[%emt 0:00:30]} 31. Bc2 {[%emt 0:00:30]} Bd5 {[%emt 0:00:30]} 32. Rf4 {[%emt 0:00:30]} Qg5 {[%emt 0:00:30]} 33. Bd3 {[%emt 0:00:30]} b4 {[%emt 0:00:30]} 34. Rc7 {[%emt 0:00:30]} Rf8 35. Qf2 Qh5 36. Kh2 Ra8 37. Rh4 Qg5 38. Bxh7+ Kh8 39. Bg6+ Kg8 40. Bxf7+ Rxf7 41. Qxf7# 1-0